bitfinex-derivatives/quotes_ETHF0:USTF0_20210407
["timestamp","ask_amount","ask_price","bid_price","bid_amount"]
[1617788409131,0.01435472,2043.8,2043.7,30.0]
[1617788409331,0.02870944,2043.9,2043.7,35.94]
[1617788409531,0.05745573,2044.2,2043.8,64.7709]
[1617788409730,0.05745573,2044.2,2043.9,30.0]
[1617788409931,0.05751392,2044.6,2043.9,35.98]
[1617788410233,0.05751392,2044.6,2044.5,2.90695]
[1617788410431,0.05754145,2044.8,2044.5,4.98705]
[1617788410631,0.05754145,2044.8,2044.5,40.94705]
[1617788411033,0.05754145,2044.8,2044.6,2.0]
[1617788411229,7.01324251,2046.2,2044.6,32.0]
[1617788411430,7.01324251,2046.2,2044.7,6.05]
[1617788411631,0.05756879,2044.9,2044.7,36.05]
[1617788412232,2.96451879,2044.9,2044.8,2.90695]
[1617788412836,2.90695,2044.9,2044.8,2.90695]
[1617788413435,71.2425,2044.8,2044.5,2.0801]
[1617788413635,71.2425,2044.8,2044.2,2.0]
[1617788413836,0.05746285,2044.7,2043.8,71.2988]
[1617788414036,0.05746285,2044.7,2043.2,30.0]
[1617788414236,71.2634,2044.1,2043.8,2.90695]
[1617788414435,73.1985,2044.1,2043.8,2.90695]
[1617788414835,1.9351,2044.1,2043.8,2.90695]
[1617788415437,0.05737926,2044.2,2044.1,65.167]
[1617788415637,0.05742289,2044.3,2044.1,65.167]
[1617788415836,0.05742289,2044.3,2044.1,71.067]
[1617788416036,0.05742289,2044.3,2044.1,101.067]
[1617788416241,0.05744004,2044.4,2044.2,2.90695]
[1617788416437,0.05747083,2044.7,2044.2,32.90695]
[1617788416637,0.05747083,2044.7,2044.3,2.0]
[1617788416837,0.05747083,2044.7,2044.4,32.0]
[1617788417037,0.05747083,2044.7,2044.4,32.7142]
[1617788417240,0.05746555,2044.9,2044.5,6.02]
[1617788417438,0.05746555,2044.9,2044.5,36.02]
[1617788417643,0.05721636,2045.6,2044.5,36.02]
[1617788417841,0.05721636,2045.6,2044.9,70.1916]
[1617788418039,0.05721636,2045.6,2044.9,72.432]
[1617788418238,0.05721636,2045.6,2045.0,2.90695]
[1617788418438,0.05726156,2045.7,2045.0,9.06695]
[1617788418837,0.05726156,2045.7,2045.0,2.90695]
[1617788420240,2.90695,2045.1,2045.0,2.90695]
[1617788421139,2.90695,2045.1,2045.0,9.03695]
[1617788421339,0.05726156,2045.7,2045.0,9.03695]
[1617788421340,75.6191,2045.5,2045.0,9.03695]
[1617788421940,0.05738717,2045.8,2045.0,39.03695]
[1617788422341,0.05735762,2046.1,2045.9,69.2433]
[1617788422540,2.90695,2046.5,2046.0,30.0]
[1617788422741,2.90695,2046.5,2046.0,35.87]
[1617788423742,0.05737627,2046.8,2046.0,35.87]
[1617788424343,0.05737627,2046.8,2045.7,30.0]
[1617788424544,0.05737627,2046.8,2046.1,63.392]
[1617788424943,0.05737991,2046.7,2046.1,63.392]
[1617788425142,0.05737991,2046.7,2046.2,6.04]
[1617788425543,0.05737991,2046.7,2046.2,36.04]
[1617788425745,0.05737799,2046.9,2046.2,36.04]
[1617788426144,0.05737401,2047.0,2046.2,36.04]
[1617788426344,0.05737401,2047.0,2046.7,2.90695]
[1617788426544,0.05737401,2047.0,2046.7,5.93595]
[1617788427549,0.05737439,2047.1,2046.7,5.93595]
[1617788428047,0.05737408,2047.0,2046.7,5.93595]
[1617788428449,2.90695,2046.8,2046.7,5.93595]
[1617788429651,2.90695,2046.8,2046.7,66.30715]
[1617788430251,2.90695,2046.8,2046.7,5.93595]
[1617788431953,2.90695,2046.8,2046.7,3.029]
[1617788432152,2.90695,2046.8,2046.0,61.7495]
[1617788432354,80.2086,2047.0,2046.5,2.90695]
[1617788434354,2.90695,2046.6,2046.5,2.90695]
[1617788435757,2.90695,2046.6,2046.5,70.27735]
[1617788437961,2.9699,2047.9,2046.5,70.27735]
[1617788438163,0.9699,2047.9,2046.5,72.58545]
[1617788438362,0.9699,2047.9,2046.5,5.21505]
[1617788438562,0.9699,2047.9,2047.1,66.62245]
[1617788438762,0.9699,2047.9,2047.1,69.00505]
[1617788439862,0.9699,2047.9,2047.1,68.82035]
[1617788440065,0.9699,2047.9,2047.1,66.43775]
[1617788440663,2.90695,2047.2,2047.1,66.43775]
[1617788441865,2.90695,2047.2,2047.1,2.72225]
[1617788442264,5.81205,2047.2,2045.6,30.0]
[1617788442466,60.0296,2047.1,2045.5,80.2148]
[1617788442665,60.0296,2047.1,2045.7,2.90695]
[1617788443265,2.9051,2047.2,2046.5,72.9198]
[1617788444065,55.9129,2048.0,2046.5,72.9198]
[1617788444464,2.0,2047.8,2046.5,72.9198]
[1617788444665,2.90695,2046.6,2046.5,75.82675]
[1617788445264,2.90695,2046.6,2046.5,2.90695]
[1617788445465,67.579,2046.5,2045.3,32.0]
[1617788445664,67.579,2046.5,2045.1,61.8251]
[1617788447572,67.579,2046.5,2045.2,32.0]
[1617788447768,67.579,2046.5,2045.2,30.0]
[1617788447965,67.579,2046.5,2045.2,35.97]
[1617788448167,2.6812,2046.9,2045.2,35.97]
[1617788448365,57.6105,2047.4,2045.9,63.2872]
[1617788448567,55.0846,2047.4,2046.3,2.90695]
[1617788448967,2.571,2047.9,2046.8,55.8928]
[1617788449267,2.571,2047.9,2046.8,58.1157]
[1617788450665,2.90695,2046.9,2046.8,58.1157]
[1617788451068,2.90695,2046.9,2046.8,88.1157]
[1617788451268,2.90695,2046.9,2046.8,93.9957]
[1617788452067,2.90695,2046.9,2046.8,95.9957]
[1617788452568,2.90695,2047.7,2046.8,98.90265]
[1617788452771,2.90695,2047.7,2046.8,43.00985]
[1617788454069,2.90695,2047.7,2047.4,68.3178]
[1617788454269,2.90695,2047.7,2047.5,6.01]
[1617788454670,2.90695,2047.7,2047.6,2.90695]
[1617788455169,2.90695,2047.7,2047.4,71.1321]
[1617788455371,2.90695,2047.7,2047.4,68.3178]
[1617788456670,2.90695,2047.7,2047.5,2.90695]
[1617788456870,2.90695,2047.7,2047.5,8.84695]
[1617788457975,2.90695,2047.7,2047.5,2.90695]
[1617788461981,4.97875,2047.7,2047.5,2.90695]
[1617788462778,4.97875,2047.7,2047.5,3.86905]
[1617788463580,4.97875,2047.7,2047.5,0.9621]
[1617788463780,4.97875,2047.7,2047.0,30.0]
[1617788464481,4.97875,2047.7,2047.1,5.95]
[1617788464883,2.90695,2047.2,2046.6,62.9161]
[1617788465081,4.99165,2047.2,2046.5,30.0]
[1617788465283,65.2856,2047.0,2046.1,32.0]
[1617788465481,65.2856,2047.0,2046.1,30.0]
[1617788465882,65.2856,2047.0,2046.2,5.94]
[1617788466882,65.2856,2047.0,2046.4,2.90695]
[1617788467282,65.2856,2047.0,2045.9,60.3672]
[1617788468881,65.2856,2047.0,2046.1,2.90695]
[1617788470987,2.90695,2046.2,2046.1,2.90695]
[1617788472790,65.2856,2047.0,2046.1,2.90695]
[1617788472989,65.2856,2047.0,2046.0,30.0]
[1617788472990,2.90695,2046.7,2046.6,2.90695]
[1617788473589,5.06465,2046.7,2046.6,2.90695]
[1617788475391,2.90695,2046.7,2046.6,2.90695]
[1617788476391,2.90695,2046.7,2046.6,3.89265]
[1617788476592,78.3622,2048.0,2046.6,2.90695]
[1617788476793,78.3622,2048.0,2046.9,58.8843]
[1617788476992,78.3622,2048.0,2047.3,2.90695]
[1617788477193,78.3622,2048.0,2047.3,5.26935]
[1617788478994,78.3622,2048.0,2047.7,2.90695]
[1617788479195,2.0,2048.9,2047.7,2.90695]
[1617788479395,67.1792,2048.8,2047.8,71.9345]
[1617788479595,67.1792,2048.8,2047.8,74.7038]
[1617788480796,67.1792,2048.8,2047.8,71.9345]
[1617788480995,2.90695,2047.9,2047.8,71.9345]
[1617788481994,65.4666,2047.7,2046.4,58.6461]
[1617788482395,61.8336,2046.8,2046.3,2.0]
[1617788482595,64.8244,2046.8,2045.2,81.3198]
[1617788482996,64.8244,2046.8,2046.6,2.90695]
[1617788483595,2.9908,2046.8,2046.6,2.90695]
[1617788483796,2.9908,2046.8,2046.7,75.5638]
[1617788484996,5.89775,2046.8,2046.7,75.5638]
[1617788485198,5.89775,2046.8,2046.6,2.90695]
[1617788488203,2.90695,2046.8,2046.6,2.90695]
[1617788489103,0.05706625,2048.6,2046.6,32.90695]
[1617788489306,58.2685,2047.9,2046.7,8.14]
[1617788489506,58.2685,2047.9,2046.8,30.0]
[1617788489706,58.2685,2047.9,2046.8,32.0]
[1617788489906,58.2685,2047.9,2046.9,6.06]
[1617788490107,58.2685,2047.9,2046.9,38.06]
[1617788491011,58.2685,2047.9,2047.5,2.90695]
[1617788493112,2.90695,2047.6,2047.5,2.90695]
[1617788495716,5.74125,2047.6,2047.5,2.90695]
[1617788495916,5.74125,2047.6,2046.6,32.0]
[1617788496117,5.88489833,2047.6,2045.6,2.0]
[1617788496316,61.0946,2046.7,2045.7,30.0]
[1617788496515,63.3313,2046.7,2045.8,2.0]
[1617788496715,63.3313,2046.7,2045.9,30.0]
[1617788496916,63.3313,2046.7,2046.0,2.0]
[1617788497118,5.14365,2046.7,2046.6,2.90695]
[1617788497917,5.14365,2046.7,2046.6,32.90695]
[1617788498316,5.14365,2046.7,2046.6,2.90695]
[1617788501922,2.90695,2046.7,2046.6,2.90695]
[1617788507831,3.05133133,2046.7,2046.6,2.90695]
[1617788508228,0.14438133,2046.7,2046.6,32.90695]
[1617788508428,0.05775195,2046.7,2046.6,39.04695]
[1617788510730,0.14439771,2046.7,2046.6,2.90695]
[1617788510931,2.65789771,2046.7,2046.6,2.90695]
[1617788511131,5.56484771,2046.7,2046.6,2.90695]
[1617788514836,2.65789771,2046.7,2046.6,2.90695]
[1617788515238,2.80230227,2046.7,2046.6,2.90695]
[1617788515938,60.82430227,2046.7,2046.6,2.90695]
[1617788516139,60.6799015,2046.7,2046.6,2.90695]
[1617788517646,60.59325838,2046.7,2046.6,2.90695]
[1617788519043,60.679986,2046.7,2046.6,2.90695]
[1617788519544,60.82447523,2046.7,2046.6,2.90695]
[1617788521344,63.90490933,2046.7,2046.6,2.90695]
[1617788521848,63.7314851,2046.7,2046.6,2.90695]
[1617788522145,63.44245,2046.7,2046.6,2.90695]
[1617788522446,63.9049456,2046.7,2046.6,2.90695]
[1617788523347,63.44245,2046.7,2046.6,2.90695]
[1617788523547,5.42045,2046.7,2046.6,2.90695]
[1617788524149,5.88291421,2046.7,2046.6,2.90695]
[1617788524349,3.36941421,2046.7,2046.6,79.69285]
[1617788524548,3.19598806,2046.7,2046.6,79.69285]
[1617788524949,3.19598806,2046.7,2046.6,85.81285]
[1617788526248,3.19598806,2046.7,2046.6,79.69285]
[1617788526449,3.36941842,2046.7,2046.6,79.69285]
[1617788527148,3.19598681,2046.7,2046.6,79.69285]
[1617788527349,3.19598681,2046.7,2046.6,81.95205]
[1617788528349,3.19598681,2046.7,2046.6,79.69285]
[1617788528550,3.19598681,2046.7,2046.6,2.90695]
[1617788528750,3.19598681,2046.7,2046.3,30.0]
[1617788528751,3.19598681,2046.7,2045.8,2.0]
[1617788528952,3.19598681,2046.7,2045.7,30.0]
[1617788529151,66.1702,2046.3,2045.7,30.0]
[1617788529352,68.4786,2046.3,2045.9,2.90695]
[1617788529750,0.05781391,2046.1,2045.9,2.90695]
[1617788530152,0.05781776,2046.0,2045.9,2.90695]
[1617788530951,0.05781776,2046.0,2045.3,78.4937]
[1617788530952,0.28911415,2046.0,2045.3,78.4937]
[1617788531153,58.1365,2045.3,2044.3,12.641]
[1617788531352,63.57185,2045.3,2045.2,2.90695]
[1617788531551,5.43535,2045.3,2045.2,2.90695]
[1617788532554,2.5284,2045.3,2045.2,2.90695]
[1617788532755,0.05787539,2045.4,2045.2,8.80695]
[1617788533755,0.05787353,2045.5,2045.2,8.80695]
[1617788534155,0.05787132,2045.4,2045.2,8.80695]
[1617788534356,0.05787132,2045.4,2045.2,2.90695]
[1617788534559,0.05787374,2045.5,2045.2,2.90695]
[1617788534959,0.05787287,2045.4,2045.2,2.90695]
[1617788535359,2.96482373,2045.5,2045.2,2.90695]
[1617788535661,0.05787349,2045.4,2045.2,2.90695]
[1617788536463,0.05787642,2045.3,2045.2,2.90695]
[1617788537065,0.14469535,2045.3,2045.2,2.90695]
[1617788537863,2.90695,2045.5,2045.2,2.90695]
[1617788538062,83.49905,2045.5,2045.2,2.90695]
[1617788543369,86.12545,2045.5,2045.2,2.90695]
[1617788544572,5.53335,2045.5,2045.2,2.90695]
[1617788550878,83.04435,2045.5,2045.2,2.90695]
[1617788555387,5.53335,2045.5,2045.2,2.90695]
[1617788558189,60.5032,2045.3,2045.2,2.90695]
[1617788558588,5.53335,2045.5,2044.1,2.0]
[1617788558788,73.3023,2045.2,2043.9,2.0]
[1617788559190,73.3023,2045.2,2043.5,70.713]
[1617788559591,73.3023,2045.2,2043.1,0.9745]
[1617788559592,1.03183374,2045.3,2043.1,0.9745]
[1617788559791,55.5957,2044.1,2043.3,2.0]
[1617788559993,57.5862,2044.1,2043.3,2.0]
[1617788560192,57.5862,2044.1,2042.8,30.0]
[1617788560993,57.5862,2044.1,2042.9,7.9]
[1617788561793,57.5862,2044.1,2043.8,2.90695]
[1617788563395,1.9905,2044.1,2043.8,2.90695]
[1617788563596,2.05752496,2045.0,2044.0,71.6419]
[1617788563795,0.05752496,2045.0,2044.5,2.90695]
[1617788563996,0.05752496,2045.0,2044.5,4.90015]
[1617788564395,0.05752496,2045.0,2044.5,64.19595]
[1617788564597,0.05752044,2045.2,2044.5,64.19595]
[1617788565197,77.0298,2045.4,2044.5,64.19595]
[1617788565397,76.0527,2045.4,2044.5,64.19595]
[1617788565800,76.0527,2045.4,2045.0,2.90695]
[1617788567803,2.90695,2045.1,2045.0,2.90695]
[1617788568402,4.91795,2045.1,2045.0,2.90695]
[1617788568600,4.91795,2045.1,2044.0,66.2348]
[1617788568999,65.2427,2044.5,2044.0,66.2348]
[1617788569201,67.4811,2044.5,2044.1,5.96]
[1617788569900,70.38805,2044.5,2044.4,2.90695]
[1617788570102,67.4811,2044.5,2044.4,2.90695]
[1617788573305,65.2427,2044.5,2044.4,2.90695]
[1617788574006,2.90695,2044.8,2044.4,32.90695]
[1617788574206,70.2891,2045.2,2044.4,38.81695]
[1617788574406,85.69579723,2046.1,2044.4,38.81695]
[1617788574407,0.05744348,2046.1,2044.4,38.81695]
[1617788574606,70.31564348,2046.1,2044.8,58.2799]
[1617788574806,70.2582,2046.1,2044.8,60.8785]
[1617788575207,70.2582,2046.1,2044.8,62.8785]
[1617788575407,2.05743784,2046.4,2044.8,4.5986]
[1617788575608,2.05743784,2046.4,2044.9,30.0]
[1617788575807,2.0,2046.4,2045.6,61.4149]
[1617788576010,2.0,2046.4,2046.1,2.90695]
[1617788576208,2.0,2046.4,2046.1,5.84335]
[1617788577208,63.57500955,2047.0,2046.1,5.84335]
[1617788577408,63.5176,2047.0,2046.1,5.84335]
[1617788577908,2.90695,2046.2,2046.1,5.84335]
[1617788578109,2.90695,2046.2,2046.1,2.9364]
[1617788579912,2.90695,2046.2,2046.1,5.84335]
[1617788580313,0.05740615,2047.3,2046.1,2.90695]
[1617788580512,2.48430615,2047.3,2046.2,65.6537]
[1617788581912,2.90695,2046.3,2046.2,65.6537]
[1617788582914,2.90695,2046.3,2046.1,2.90695]
[1617788583314,2.90695,2046.3,2045.8,65.8537]
[1617788583916,2.90695,2046.3,2046.2,2.90695]
[1617788585016,2.90695,2046.3,2045.1,30.0]
[1617788585216,63.6589,2045.6,2045.1,30.0]
[1617788585416,65.8528,2045.6,2045.1,30.0]
[1617788585616,65.8528,2045.6,2044.8,30.0]
[1617788586018,65.8528,2045.6,2045.5,2.90695]
[1617788587722,65.8528,2045.6,2044.8,30.0]
[1617788587920,65.8528,2045.6,2044.9,2.90695]
[1617788589922,65.8528,2045.6,2045.2,2.90695]
[1617788590322,65.8528,2045.6,2044.5,30.0]
[1617788590323,65.8528,2045.6,2044.3,76.3675]
[1617788591924,65.8528,2045.6,2044.7,2.90695]
[1617788594026,2.90695,2044.8,2044.7,2.90695]
[1617788594224,5.34985,2044.8,2044.7,2.90695]
[1617788597327,5.34985,2044.8,2043.9,73.5757]
[1617788597527,71.02,2044.7,2043.9,73.5757]
[1617788598134,71.02,2044.7,2044.3,2.90695]
[1617788600129,2.90695,2044.4,2044.3,2.90695]
[1617788600330,72.0996,2045.1,2044.3,77.54125]
[1617788602130,72.0996,2045.1,2044.6,2.90695]
[1617788603430,72.0996,2045.1,2044.3,74.6343]
[1617788603632,75.0744,2045.1,2044.3,74.6343]
[1617788604032,75.0744,2045.1,2044.6,2.90695]
[1617788605033,75.0744,2045.1,2044.3,74.6343]
[1617788606035,75.0744,2045.1,2044.4,2.90695]
[1617788608040,2.90695,2044.5,2044.4,2.90695]
[1617788608241,5.77455,2044.5,2044.4,2.90695]
[1617788610041,5.77455,2044.5,2043.9,2.90695]
[1617788610441,78.5157,2043.9,2042.6,95.7875]
[1617788610642,2.9292,2043.9,2042.6,30.0]
[1617788610842,78.5272,2043.4,2042.6,30.9697]
[1617788611045,80.8508,2043.4,2042.6,30.9697]
[1617788611242,80.8508,2043.4,2042.6,30.0]
[1617788611844,80.8508,2043.4,2042.7,6.13]
[1617788612044,80.8508,2043.4,2043.3,2.90695]
[1617788612249,2.3236,2043.4,2043.3,2.90695]
[1617788614246,2.90695,2043.5,2043.3,2.90695]
[1617788614848,72.7995,2043.6,2043.3,2.90695]
[1617788615047,4.03810028,2047.9,2043.4,6.11]
[1617788615048,0.4616414,2045.0,2043.4,6.11]
[1617788615247,0.4616414,2045.0,2043.5,30.0]
[1617788615447,0.4616414,2045.0,2043.9,67.395]
[1617788615448,75.4854,2044.8,2043.9,67.395]
[1617788615848,2.0,2044.7,2043.9,67.395]
[1617788616048,75.4854,2044.8,2043.9,67.395]
[1617788616248,2.0,2044.7,2044.3,2.90695]
[1617788618250,4.90695,2044.4,2044.3,2.90695]
[1617788618449,7.91195,2044.4,2044.3,2.90695]
[1617788618850,7.91195,2044.4,2043.9,67.395]
[1617788620053,7.91195,2044.4,2043.1,30.0]
[1617788620252,5.005,2044.4,2043.9,2.90695]
[1617788621657,63.9901,2044.0,2043.9,2.90695]
[1617788622254,66.89705,2044.0,2043.9,2.90695]
[1617788625356,66.89705,2044.0,2043.3,30.0]
[1617788625557,69.30955,2044.0,2043.3,30.0]
[1617788625755,69.30955,2044.0,2042.9,2.0]
[1617788626056,69.30955,2044.0,2042.9,32.0]
[1617788626260,66.4026,2044.0,2043.5,2.90695]
[1617788627458,63.9901,2044.0,2043.5,2.90695]
[1617788628260,2.90695,2043.6,2043.5,2.90695]
[1617788629862,63.9901,2044.0,2043.5,32.90695]
[1617788630062,2.0,2044.8,2043.5,35.04435]
[1617788630263,0.05761776,2044.9,2044.7,2.90695]
[1617788630464,0.05761776,2044.9,2044.7,5.38325]
[1617788630661,2.05761776,2044.9,2044.8,68.5011]
[1617788630862,0.05761776,2044.9,2044.8,68.5011]
[1617788631361,0.0576099,2045.2,2044.8,68.5011]
[1617788631561,0.05760635,2045.3,2044.8,68.5011]
[1617788632261,0.05760364,2045.4,2045.2,2.90695]
[1617788632461,0.05760364,2045.4,2045.2,5.68615]
[1617788633263,0.05760364,2045.4,2045.2,2.7792]
[1617788633464,0.05760364,2045.4,2044.8,68.5011]
[1617788633863,0.05760622,2045.3,2044.0,30.0]
[1617788634062,80.4798,2044.7,2043.6,72.4254]
[1617788634269,80.4798,2044.7,2044.6,2.90695]
[1617788634471,80.4798,2044.7,2043.6,59.5267]
[1617788634672,80.4798,2044.7,2043.7,30.0]
[1617788635272,80.4798,2044.7,2043.8,6.12]
[1617788636274,80.4798,2044.7,2044.3,2.90695]
[1617788636873,80.4798,2044.7,2043.6,59.5267]
[1617788637074,82.9123,2044.7,2043.6,59.5267]
[1617788637273,2.4325,2044.7,2042.9,2.0]
[1617788637474,55.1312,2044.0,2042.9,70.8059]
[1617788637675,57.768,2044.0,2042.9,70.8059]
[1617788638080,57.768,2044.0,2043.0,6.05]
[1617788638475,57.768,2044.0,2043.7,2.90695]
[1617788639976,55.1312,2044.0,2043.7,2.90695]
[1617788640178,64.4982,2044.3,2043.7,65.97285]
[1617788640378,64.4982,2044.3,2044.2,2.90695]
[1617788640780,0.05758944,2044.9,2044.2,2.90695]
[1617788640979,0.05758944,2044.9,2044.3,62.7235]
[1617788641179,81.84798658,2045.0,2044.3,62.7235]
[1617788641680,81.7904,2045.0,2044.3,62.7235]
[1617788642282,83.7904,2045.0,2044.3,62.7235]
[1617788642485,2.90695,2044.4,2044.3,62.7235]
[1617788643989,81.7904,2045.0,2044.3,62.7235]
[1617788644387,81.7904,2045.0,2044.7,2.90695]
[1617788646589,2.90695,2044.8,2044.7,2.90695]
[1617788647393,0.0575997,2045.3,2045.1,76.7279]
[1617788647796,0.05759915,2045.5,2045.1,76.7279]
[1617788648590,0.05759915,2045.5,2045.3,2.90695]
[1617788649390,0.20159417,2045.5,2045.3,2.90695]
[1617788649592,0.05759801,2045.4,2045.3,2.90695]
[1617788649791,0.05756808,2045.5,2045.3,2.90695]
[1617788650192,0.02878446,2045.4,2045.3,2.90695]
[1617788650394,0.02878446,2045.4,2045.1,76.7279]
[1617788650593,2.90695,2045.2,2045.1,76.7279]
[1617788651592,2.90695,2045.2,2043.3,2.0]
[1617788651794,81.9635,2044.6,2043.7,69.0631]
[1617788651993,84.0728,2044.6,2043.7,69.0631]
[1617788652593,84.0728,2044.6,2044.0,2.90695]
[1617788654197,84.0728,2044.6,2044.1,6.15]
[1617788654396,81.9635,2044.6,2044.1,6.15]
[1617788654597,81.9635,2044.6,2044.0,2.90695]
[1617788654799,81.9635,2044.6,2044.4,2.90695]
[1617788656800,2.90695,2044.5,2044.4,2.90695]
[1617788657000,5.95175,2044.5,2044.4,2.90695]
[1617788659101,5.95175,2044.5,2043.7,99.0631]
[1617788659502,5.95175,2044.5,2043.7,69.0631]
[1617788660702,5.95175,2044.5,2042.9,30.0]
[1617788660904,65.3931,2043.6,2042.9,30.0]
[1617788661102,68.1508,2043.6,2042.9,30.0]
[1617788661504,68.1508,2043.6,2043.0,5.91]
[1617788663005,68.1508,2043.6,2043.5,2.90695]
[1617788664005,2.7577,2043.6,2043.5,2.90695]
[1617788665206,5.66465,2043.6,2043.5,2.90695]
[1617788668109,5.66465,2043.6,2042.7,30.0]
[1617788668310,57.4693,2043.2,2042.7,30.0]
[1617788668511,5.66465,2043.6,2042.0,30.0]
[1617788668712,59.002,2042.6,2042.0,30.0]
[1617788668914,59.002,2042.6,2041.9,2.0]
[1617788668915,61.5772,2042.6,2041.9,2.0]
[1617788669213,61.5772,2042.6,2042.5,2.90695]
[1617788671113,61.5772,2042.6,2041.9,30.0]
[1617788671314,61.5772,2042.6,2042.5,2.90695]
[1617788671615,61.5772,2042.6,2041.9,30.0]
[1617788672415,61.5772,2042.6,2041.5,105.3151]
[1617788673015,61.5772,2042.6,2041.6,5.87]
[1617788673217,61.5772,2042.6,2042.5,2.90695]
[1617788673615,2.5752,2042.6,2042.5,2.90695]
[1617788673815,61.1766,2042.9,2042.5,2.90695]
[1617788674015,0.02887565,2043.4,2042.5,32.90695]
[1617788674415,0.02887078,2043.7,2043.1,65.4674]
[1617788674618,0.02887078,2043.7,2043.1,67.5231]
[1617788674815,0.05774155,2043.8,2043.1,67.5231]
[1617788674816,0.02886898,2043.9,2043.2,5.97]
[1617788675216,0.02886898,2043.9,2043.6,2.90695]
[1617788675415,0.02886898,2043.9,2043.6,5.98295]
[1617788675616,0.02886752,2044.0,2043.6,5.98295]
[1617788676515,0.02886752,2044.0,2043.6,2.90695]
[1617788677421,2.90695,2043.7,2043.6,2.90695]
[1617788677624,4.94865,2043.7,2043.6,2.90695]
[1617788678922,4.94865,2043.7,2042.4,58.7839]
[1617788679121,75.4075,2043.2,2042.4,58.7839]
[1617788679324,77.5873,2043.2,2043.1,2.90695]
[1617788680224,2.1798,2043.2,2043.1,2.90695]
[1617788680424,2.0417,2043.7,2043.1,2.90695]
[1617788680624,65.3223,2043.6,2043.1,2.90695]
[1617788681425,65.3223,2043.6,2043.4,2.90695]
[1617788683529,2.90695,2043.5,2043.4,2.90695]
[1617788702151,0.02890737,2043.8,2043.4,2.90695]
[1617788702753,0.02890737,2043.8,2043.7,61.7003]
[1617788703151,0.02890737,2043.8,2043.4,2.90695]
[1617788703352,71.9434,2043.5,2043.4,2.90695]
[1617788703551,0.02891054,2043.7,2042.8,2.0]
[1617788703752,74.8971,2043.0,2042.9,2.90695]
[1617788703954,1.9703,2043.0,2042.2,2.0]
[1617788704154,74.9081,2042.5,2042.2,2.0]
[1617788704354,77.2931,2042.5,2042.2,2.0]
[1617788704753,77.2931,2042.5,2042.3,6.05]
[1617788704951,77.2931,2042.5,2042.3,8.05]
[1617788705154,77.2931,2042.5,2042.1,30.0]
[1617788705358,77.2931,2042.5,2041.9,30.0]
[1617788705754,77.2931,2042.5,2042.4,2.90695]
[1617788709857,2.385,2042.5,2042.4,2.90695]
[1617788710057,2.90695,2042.6,2041.6,32.0]
[1617788710258,70.1134,2042.4,2041.6,32.0]
[1617788710459,1.9945,2042.5,2040.9,13.9597]
[1617788710658,65.9667,2041.6,2041.1,2.0]
[1617788710861,1.9176,2041.6,2041.1,2.0]
[1617788711461,72.5577,2041.1,2040.2,13.7836]
[1617788711661,74.9901,2041.1,2040.3,30.0]
[1617788711862,74.9901,2041.1,2041.0,2.90695]
[1617788714662,2.4324,2041.1,2041.0,32.90695]
[1617788714861,1.9176,2041.6,2041.0,32.90695]
[1617788715062,60.6633,2042.4,2041.1,56.3428]
[1617788715264,0.01439252,2042.7,2041.2,36.1]
[1617788715464,0.01439105,2043.0,2041.2,36.1]
[1617788715666,64.5008,2043.0,2041.8,72.7392]
[1617788715867,64.5008,2043.0,2041.9,2.90695]
[1617788717167,64.51519025,2043.0,2041.9,2.90695]
[1617788717568,64.5008,2043.0,2041.9,2.90695]
[1617788717867,2.90695,2042.0,2041.9,2.90695]
[1617788718468,5.65575,2042.0,2041.9,2.90695]
[1617788720069,2.90695,2042.0,2041.9,2.90695]
[1617788720269,81.0102,2042.3,2041.9,2.90695]
[1617788721971,81.0102,2042.3,2042.2,2.90695]
[1617788724276,81.0102,2042.3,2042.2,5.19425]
[1617788724675,2.90695,2042.5,2042.2,5.19425]
[1617788724878,2.90695,2042.5,2042.4,70.8401]
[1617788726279,2.88720256,2042.5,2042.4,70.8401]
[1617788728885,62.375,2043.0,2042.4,100.8401]
[1617788729082,0.01437752,2043.8,2042.4,30.0]
[1617788729282,0.02875505,2043.9,2042.4,30.0]
[1617788729283,2.0,2043.9,2042.9,64.0091]
[1617788729482,2.0,2043.9,2042.9,66.3994]
[1617788729682,2.0,2043.9,2042.9,2.3903]
[1617788729883,2.0,2043.9,2043.4,63.9997]
[1617788730083,2.0,2043.9,2043.5,2.90695]
[1617788730685,79.8305,2044.3,2043.5,2.90695]
[1617788731984,2.90695,2043.6,2043.5,2.90695]
[1617788735086,2.90695,2043.6,2043.3,58.7111]
[1617788736089,2.90695,2043.6,2043.4,2.90695]
[1617788737988,71.8365,2043.4,2042.4,32.0]
[1617788738189,71.8365,2043.4,2042.9,2.90695]
[1617788738790,71.8365,2043.4,2042.4,30.0]
[1617788740090,71.8365,2043.4,2042.6,2.90695]
[1617788741090,71.8365,2043.4,2042.7,5.99]
[1617788741592,2.0075,2043.6,2042.7,5.99]
[1617788741792,0.01438098,2044.1,2043.1,63.5484]
[1617788742192,61.4879,2044.2,2043.4,2.90695]
[1617788744094,2.90695,2043.5,2043.4,2.90695]
[1617788747194,5.99345,2043.5,2043.4,2.90695]
[1617788749501,5.99345,2043.5,2042.2,32.0]
[1617788749698,61.9679,2043.1,2042.2,92.011]
[1617788750199,61.9679,2043.1,2042.8,2.90695]
[1617788750600,61.9679,2043.1,2042.4,2.0]